bitfinex-derivatives/quotes_SOLF0:USTF0_20250409
["timestamp","ask_amount","ask_price","bid_price","bid_amount"]
[1744205025700,0.06985114,104.3,104.27,46.98]
[1744205025905,0.06985114,104.3,104.24,588.95122044]
[1744205026094,9.66355114,104.3,104.24,588.95122044]
[1744205026603,9.66355114,104.3,104.27,9.5955]
[1744205026903,9.5943,104.29,104.24,588.95122044]
[1744205027099,4.6768,104.33,104.27,9.5958]
[1744205027300,22.359375,104.32,104.27,9.5958]
[1744205027606,9.5937,104.3,104.27,9.5958]
[1744205027804,0.07098231,104.31,104.28,9.5947]
[1744205028005,9.5929,104.31,104.28,9.5947]
[1744205028208,9.66436457,104.31,104.28,9.5947]
[1744205028506,9.5934,104.3,104.28,9.5947]
[1744205028691,9.5934,104.3,104.27,9.5958]
[1744205029003,9.5934,104.3,104.25,62.0]
[1744205029205,9.66490958,104.3,104.25,62.0]
[1744205029398,9.66490958,104.3,104.27,9.5953]
[1744205030304,9.5942,104.29,104.27,9.5953]
[1744205030506,0.07150958,104.3,104.27,9.5953]
[1744205030708,0.07150958,104.3,104.26,9.5964]
[1744205031007,0.07150958,104.3,104.25,62.0]
[1744205031609,9.5943,104.29,104.25,62.0]
[1744205031912,9.5943,104.29,104.26,9.5967]
[1744205032203,0.07150958,104.3,104.25,62.0]
[1744205032406,0.07150958,104.3,104.26,9.5965]
[1744205033189,0.07150958,104.3,104.24,553.32]
[1744205033611,0.07150958,104.3,104.25,22.359375]
[1744205034207,0.07150958,104.3,104.29,9.5942]
[1744205034408,0.07150958,104.3,104.27,47.0]
[1744205034705,0.07150958,104.3,104.29,9.5942]
[1744205035609,0.07150958,104.3,104.29,71.5942]
[1744205038106,0.07150958,104.3,104.29,9.5942]
[1744205040804,9.66560958,104.3,104.26,22.359375]
[1744205041111,0.07150958,104.3,104.26,62.0]
[1744205041498,0.07150958,104.3,104.27,9.5955]
[1744205041911,9.66530958,104.3,104.27,9.5955]
[1744205042108,9.66530958,104.3,104.28,9.595]
[1744205042810,9.66530958,104.3,104.24,575.679375]
[1744205043013,0.07150958,104.3,104.24,575.679375]
[1744205043312,0.07150958,104.3,104.26,22.359375]
[1744205043514,0.07150958,104.3,104.27,46.9]
[1744205043713,16.57164,104.35,104.28,22.359375]
[1744205043907,9.5909,104.33,104.28,31.289975]
[1744205044212,16.57164,104.35,104.28,8.9306]
[1744205044213,22.359375,104.34,104.28,8.9306]
[1744205044414,9.5937,104.3,104.26,359.0]
[1744205044704,9.5937,104.3,104.25,22.359375]
[1744205044907,0.07296041,104.29,104.27,0.07025674]
[1744205045108,11.67324,104.35,104.29,22.359375]
[1744205045304,11.67324,104.35,104.3,4.4739]
[1744205045609,21.26224,104.35,104.3,4.4739]
[1744205046008,11.67324,104.35,104.32,9.591]
[1744205046213,0.06811441,104.34,104.32,9.591]
[1744205046413,0.06811441,104.34,104.31,46.96893212]
[1744205046715,0.06811441,104.34,104.33,9.5905]
[1744205047610,11.67324,104.35,104.33,22.359375]
[1744205048020,11.67324,104.35,104.34,56.4896]
[1744205048617,11.67324,104.35,104.34,9.5896]
[1744205050016,11.67324,104.35,104.33,0.06433604]
[1744205050407,21.26224,104.35,104.33,0.06433604]
[1744205050821,11.67324,104.35,104.33,0.06433604]
[1744205051020,9.5896,104.34,104.33,0.06433604]
[1744205051216,11.67324,104.35,104.33,0.06433604]
[1744205051517,9.5896,104.34,104.33,0.06433604]
[1744205058625,11.67324,104.35,104.33,0.06433604]
[1744205059121,11.67324,104.35,104.33,9.65443604]
[1744205059620,11.67324,104.35,104.34,9.5896]
[1744205060426,11.67324,104.35,104.33,9.65423604]
[1744205061725,21.26184,104.35,104.33,0.06433604]
[1744205062124,11.67324,104.35,104.33,0.06433604]
[1744205062323,11.67324,104.35,104.34,9.5896]
[1744205063224,11.67324,104.35,104.33,9.65433604]
[1744205064330,11.67324,104.35,104.34,9.5896]
[1744205064531,11.67324,104.35,104.33,0.06433604]
[1744205065030,11.67324,104.35,104.33,9.65433604]
[1744205066234,11.67324,104.35,104.34,9.5896]
[1744205068431,22.359375,104.43,104.34,9.58]
[1744205068630,22.359375,104.43,104.35,51.5907]
[1744205069029,9.5835,104.41,104.35,51.5907]
[1744205069534,9.5842,104.4,104.35,51.5907]
[1744205069731,0.06399212,104.39,104.37,0.07086879]
[1744205070341,0.06399212,104.39,104.38,9.5859]
[1744205071336,0.06399212,104.39,104.37,9.65706879]
[1744205071532,0.06399212,104.39,104.37,0.07086879]
[1744205071736,9.5859,104.38,104.37,0.07086879]
[1744205072037,22.359375,104.38,104.3,1.66714573]
[1744205072239,22.359375,104.34,104.27,558.67077894]
[1744205072734,22.359375,104.34,104.29,9.5936]
[1744205072938,22.359375,104.34,104.27,558.67077894]
[1744205073243,0.06217242,104.32,104.29,0.06849479]
[1744205073544,22.42154742,104.32,104.29,0.06849479]
[1744205073949,0.06217242,104.32,104.29,0.06849479]
[1744205074150,0.06217242,104.32,104.29,9.66189479]
[1744205074648,22.42154742,104.32,104.29,0.06849479]
[1744205074945,9.5927,104.31,104.29,0.06849479]
[1744205075335,32.01344742,104.32,104.29,0.06849479]
[1744205075550,22.42154742,104.32,104.29,0.06849479]
[1744205075751,0.06217242,104.32,104.3,9.5926]
[1744205076151,0.06217242,104.32,104.29,46.84849479]
[1744205076341,0.06217242,104.32,104.3,9.5927]
[1744205076541,0.06217242,104.32,104.29,46.84849479]
[1744205077253,0.06217242,104.32,104.3,9.5927]
[1744205077749,0.06217242,104.32,104.29,46.84849479]
[1744205080954,0.06217242,104.32,104.31,9.5923]
[1744205083646,40.78781707,291.69,104.3,550.97875]
[1744205083647,612.25722327,104.44,104.3,550.97875]
[1744205083851,22.359375,104.4,104.33,22.359375]
[1744205084450,46.78,104.39,104.33,22.359375]
[1744205084844,9.5881,104.36,104.35,0.06153745]
[1744205085757,0.07072406,104.37,104.35,0.06153745]
[1744205086351,9.5877,104.36,104.35,0.06153745]
[1744205087048,9.65812406,104.37,104.35,0.06153745]
[1744205087252,0.07072406,104.37,104.35,0.06153745]
[1744205087651,9.5877,104.36,104.35,0.06153745]
[1744205089351,9.5888,104.35,104.33,9.5899]
[1744205089955,14.3806,104.36,104.33,9.5899]
[1744205090152,14.3806,104.36,104.34,9.5892]
[1744205090358,73.931775,104.36,104.28,22.359375]
[1744205090543,9.5903,104.34,104.28,22.359375]
[1744205090852,0.0653711,104.32,104.31,0.06729388]
[1744205093155,9.6567711,104.32,104.31,0.06729388]
[1744205096157,14.4124711,104.32,104.31,0.06729388]
[1744205096952,36.7604461,104.32,104.23,9.696e-05]
[1744205097147,22.359375,104.28,104.23,9.696e-05]
[1744205097548,9.5965,104.27,104.24,9.5983]
[1744205097858,22.359375,104.28,104.24,9.5983]
[1744205098062,0.07325247,104.27,104.24,9.66260017]
[1744205098762,9.66965247,104.27,104.24,9.66260017]
[1744205098952,22.359375,104.26,104.24,0.06430017]
[1744205099153,9.5978,104.25,104.24,0.06430017]
[1744205100259,31.617375,104.26,104.22,0.45883064]
[1744205100459,31.617375,104.26,104.17,36.87533864]
[1744205100460,22.359375,104.23,104.17,0.47546364]
[1744205100666,22.359375,104.21,104.17,0.47546364]
[1744205100963,9.6043,104.18,104.17,0.47546364]
[1744205101362,9.6038,104.19,104.17,0.47546364]
[1744205101562,9.67715343,104.19,104.17,0.47546364]
[1744205101763,0.07335343,104.19,104.17,0.47546364]
[1744205101961,0.07335343,104.19,104.18,9.6043]
[1744205102164,0.07335343,104.19,104.17,0.47546364]
[1744205102665,0.07335343,104.19,104.18,9.6043]
[1744205102960,0.07335343,104.19,104.17,47.17546364]
[1744205103657,35.83497524,104.24,104.17,47.17546364]
[1744205103862,46.7,104.25,104.17,52.01346364]
[1744205104057,45.43267524,104.26,104.17,52.01346364]
[1744205104362,35.83497524,104.26,104.18,9.7193]
[1744205104763,46.7,104.25,104.17,0.47546364]
[1744205104967,0.07055548,104.23,104.21,0.06957259]
[1744205105264,9.601,104.22,104.21,0.06957259]
[1744205105655,0.07055548,104.23,104.21,0.06957259]
[1744205105865,9.67075548,104.23,104.21,0.06957259]
[1744205106063,0.07055548,104.23,104.21,0.06957259]
[1744205106452,9.67065548,104.23,104.21,0.06957259]
[1744205107467,9.6006,104.22,104.21,0.06957259]
[1744205107661,0.07055548,104.23,104.21,0.06957259]
[1744205108164,9.67095548,104.23,104.21,0.06957259]
[1744205108365,0.07055548,104.23,104.17,0.47546364]
[1744205108765,0.07055548,104.23,104.18,9.6038]
[1744205109285,9.6014,104.22,104.18,9.6038]
[1744205109570,9.6014,104.22,104.19,0.06929918]
[1744205109770,9.6017,104.21,104.19,0.06929918]
[1744205110173,0.07055548,104.23,104.19,0.06929918]
[1744205110370,9.601,104.22,104.19,9.67249918]
[1744205110564,0.07055548,104.23,104.19,0.06929918]
[1744205110875,0.07055548,104.23,104.2,9.6021]
[1744205111074,9.67075548,104.23,104.2,9.6021]
[1744205111265,0.07055548,104.23,104.19,0.06929918]
[1744205111673,9.67025548,104.23,104.2,9.6019]
[1744205111871,0.07055548,104.23,104.19,0.06929918]
[1744205112871,0.07055548,104.23,104.22,9.6006]
[1744205114069,0.07055548,104.23,104.21,9.66372445]
[1744205114471,0.07055548,104.23,104.21,0.06272445]
[1744205115276,0.07055548,104.23,104.22,9.6006]
[1744205116072,5.548e-05,104.23,104.22,9.6006]
[1744205118180,5.548e-05,104.23,104.21,46.78272445]
[1744205118567,5.548e-05,104.23,104.22,9.6006]
[1744205122681,5.548e-05,104.23,104.21,9.66382445]
[1744205122978,5.548e-05,104.23,104.21,0.06272445]
[1744205123275,9.6006,104.22,104.21,0.06272445]
[1744205124479,56.3206,104.22,104.21,0.06272445]
[1744205124680,46.72,104.22,104.17,10.08026364]
[1744205124981,46.72,104.22,104.17,0.47546364]
[1744205124982,22.39019208,104.21,104.17,0.47546364]
[1744205125281,9.6043,104.18,104.17,0.47546364]
[1744205125479,56.3243,104.18,104.17,0.47546364]
[1744205127478,56.3243,104.18,104.16,0.48086379]
[1744205127479,9.6052,104.17,104.16,0.48086379]
[1744205127683,22.39019208,104.17,104.14,0.4378282]
[1744205128084,9.6069,104.16,104.14,0.4378282]
[1744205128291,22.39019208,104.17,104.14,0.4378282]
[1744205128484,9.6071,104.15,104.14,0.4378282]
[1744205129180,9.6089,104.13,104.12,0.46653502]
[1744205129579,44.78038416,104.12,104.04,132.86390168]
[1744205129782,32.00649208,104.05,104.04,132.86390168]
[1744205129973,78.74649208,104.05,104.04,131.19215091]
[1744205130179,46.74,104.05,104.04,131.19215091]
[1744205130580,46.74,104.05,104.03,131.64289834]
[1744205130780,56.3568,104.05,104.03,131.64289834]
[1744205131182,46.74,104.05,104.03,131.64289834]
[1744205131588,0.06104281,104.06,104.03,131.64289834]
[1744205132090,9.67714281,104.06,104.03,131.64289834]
[1744205132592,0.06104281,104.06,104.03,131.64289834]
[1744205132786,22.45123489,104.06,104.03,131.64289834]
[1744205133285,9.67684281,104.06,104.03,131.64289834]
[1744205134187,82.60285982,104.15,104.03,178.30289834]
[1744205134483,35.94285982,104.11,104.03,183.03319834]
[1744205134687,9.6131,104.09,104.04,9.6167]
[1744205134890,9.6131,104.09,104.03,56.32244743]
[1744205135080,9.6131,104.09,104.05,9.6162]
[1744205135276,0.07244386,104.07,104.05,0.06514438]
[1744205135794,9.6154,104.06,104.05,0.06514438]
[1744205136891,9.6154,104.06,104.05,4.438e-05]
[1744205137081,9.6172,104.04,104.03,0.45074743]
[1744205138192,82.62285982,104.05,104.01,0.54845485]
[1744205138491,35.94285982,104.03,104.01,0.54845485]
[1744205138790,9.6186,104.03,104.01,0.54845485]
[1744205138997,46.74650556,104.05,104.01,0.54845485]
[1744205139397,46.74650556,104.05,104.01,10.16765485]
[1744205139983,0.06650556,104.05,104.01,10.16765485]
[1744205140288,36.00936538,104.05,104.01,0.54845485]
[1744205140998,9.6178,104.04,104.01,0.54845485]
[1744205141187,36.00936538,104.05,104.01,0.54845485]
[1744205141386,0.06650556,104.05,104.01,0.54845485]
[1744205141795,36.00936538,104.05,104.01,0.54845485]
[1744205141993,0.06650556,104.05,104.01,0.54845485]
[1744205142591,0.06650556,104.05,104.01,47.22845485]
[1744205142997,0.06650556,104.05,104.03,9.6177]
[1744205143498,0.06650556,104.05,104.02,4.7288]
[1744205144190,0.06650556,104.05,104.03,9.6173]
[1744205144385,0.06650556,104.05,104.01,109.22845485]
[1744205144593,0.06650556,104.05,104.01,62.54845485]
[1744205144793,0.06650556,104.05,104.03,9.6177]
[1744205144993,9.68330556,104.05,104.01,62.54845485]
[1744205145283,9.68330556,104.05,104.01,0.54845485]
[1744205145483,9.68330556,104.05,104.02,9.619]
[1744205145798,0.06650556,104.05,104.01,47.24845485]
[1744205146097,0.06650556,104.05,104.04,9.6172]
[1744205148801,9.6122,104.1,104.06,9.615]
[1744205149103,66.84876,104.11,104.06,9.615]
[1744205149401,9.613,104.09,104.06,9.615]
[1744205149700,102.79161982,104.11,104.04,51.5612]
[1744205149902,9.6124,104.1,104.04,51.5612]
[1744205150200,0.06186076,104.09,104.06,9.68569753]
[1744205150602,0.06186076,104.09,104.07,9.6144]
[1744205150813,0.06186076,104.09,104.06,0.07099753]
[1744205151292,9.67456076,104.09,104.06,0.07099753]
[1744205151893,0.06186076,104.09,104.06,0.07099753]
[1744205152095,0.06186076,104.09,104.06,9.68579753]
[1744205152401,0.06186076,104.09,104.06,0.07099753]
[1744205153504,0.06186076,104.09,104.06,9.68629753]
[1744205154000,9.67496076,104.09,104.06,9.68629753]
[1744205155003,9.6136,104.08,104.06,9.68629753]
[1744205155191,0.06186076,104.09,104.06,9.68629753]
[1744205155701,9.67486076,104.09,104.07,9.6144]
[1744205156392,9.6139,104.08,104.06,9.68589753]
[1744205156597,0.06186076,104.09,104.06,9.68589753]
[1744205156900,9.67536076,104.09,104.06,9.68589753]
[1744205157507,0.06186076,104.09,104.06,0.07099753]
[1744205157995,0.06186076,104.09,104.06,46.77099753]
[1744205158196,0.06186076,104.09,104.08,9.6135]
[1744205159705,20.14876,104.11,104.1,9.6117]
[1744205160902,20.14876,104.11,104.09,0.06973651]
[1744205161406,9.6117,104.1,104.09,0.06973651]
[1744205161705,20.14876,104.11,104.09,0.06973651]
[1744205161903,35.94285982,104.1,104.04,368.3981]
[1744205162104,35.94285982,104.08,104.01,5.40585485]
[1744205162609,87.24285982,104.1,104.01,52.08585485]
[1744205163306,0.06433144,104.07,104.04,0.06332583]
[1744205163508,9.67923144,104.07,104.04,0.06332583]
[1744205163708,9.67923144,104.07,104.04,9.67982583]
[1744205163908,9.67923144,104.07,104.04,0.06332583]
[1744205164103,0.06433144,104.07,104.04,0.06332583]
[1744205164406,0.06433144,104.07,104.05,9.6162]
[1744205165711,9.67883144,104.07,104.05,9.6162]
[1744205166713,0.06433144,104.07,104.05,9.6162]
[1744205167709,9.6158,104.06,104.04,0.06332583]
[1744205167920,0.06433144,104.07,104.04,0.06332583]
[1744205168206,46.6,104.06,104.04,0.06332583]
[1744205168397,9.6163,104.05,104.04,0.06332583]
[1744205169007,0.06433144,104.07,104.04,0.06332583]
[1744205169312,0.06433144,104.07,104.04,46.66332583]
[1744205170004,0.06433144,104.07,104.05,9.6156]
[1744205170305,0.06433144,104.07,104.04,46.66332583]
[1744205170509,29.76036,104.11,104.05,4.7987]
[1744205170699,29.76036,104.11,104.05,14.189]
[1744205171006,29.76036,104.11,104.08,9.6131]
[1744205171407,20.14876,104.11,104.05,76.189]
[1744205171806,20.14876,104.11,104.09,9.6122]
[1744205172003,20.14876,104.11,104.07,46.66143862]
[1744205172200,20.21827797,104.11,104.07,46.66143862]
[1744205172405,20.21827797,104.11,104.08,9.6126]
[1744205172706,35.94285982,104.1,104.07,0.06143862]
[1744205173212,9.6135,104.08,104.07,0.06143862]
[1744205173605,46.6,104.08,104.02,9.4925]
[1744205173909,82.54285982,104.08,104.02,4.649]
[1744205174214,9.6185,104.03,104.01,47.14845485]
[1744205174710,0.06747723,104.03,104.01,56.83640835]
[1744205175309,0.06747723,104.03,104.01,10.23640835]
[1744205175518,9.68567723,104.03,104.01,0.61680835]
[1744205175918,9.6191,104.02,104.01,0.61680835]
[1744205177712,0.06747723,104.03,104.01,0.61680835]
[1744205178409,9.6191,104.02,104.01,0.61680835]
[1744205179715,0.06747723,104.03,104.01,0.61680835]
[1744205181816,0.06747723,104.03,104.02,9.6191]
[1744205182120,0.06747723,104.03,104.01,0.61680835]
[1744205182321,0.06747723,104.03,104.01,10.23640835]
[1744205182522,0.06747723,104.03,104.01,0.61680835]
[1744205182923,0.06747723,104.03,104.01,10.23640835]
[1744205183221,0.06747723,104.03,104.01,0.61680835]
[1744205183431,0.06747723,104.03,104.01,10.23620835]
[1744205183614,0.06747723,104.03,104.01,0.61680835]
[1744205184113,9.6191,104.02,104.01,0.61680835]
[1744205184308,0.06747723,104.03,104.01,0.61680835]
[1744205184718,9.68597723,104.03,104.01,0.61680835]
[1744205184927,0.06747723,104.03,104.01,0.61680835]
[1744205185224,0.06747723,104.03,104.01,10.23660835]
[1744205186028,9.68577723,104.03,104.01,0.61680835]
[1744205186520,9.68577723,104.03,104.01,10.23680835]
[1744205186722,0.06747723,104.03,104.01,10.23680835]
[1744205187126,0.06747723,104.03,104.01,0.61680835]
[1744205187316,9.6191,104.02,104.01,0.61680835]
[1744205188714,9.6191,104.02,104.01,8.35e-06]
[1744205188919,9.6191,104.02,104.0,0.50290539]
[1744205188920,9.62,104.01,104.0,0.50290539]
[1744205189115,45.05625982,104.02,103.98,0.55652457]
[1744205190023,0.06594411,104.01,103.98,0.55652457]
[1744205190727,9.6218,104.0,103.98,0.55652457]
[1744205190929,0.06594411,104.01,103.98,0.55652457]
[1744205191816,0.06594411,104.01,104.0,9.6209]
[1744205192024,35.94285982,104.08,103.99,56.2805]
[1744205192225,82.56285982,104.08,103.99,56.2805]
[1744205192421,9.6175,104.04,103.99,56.2805]
[1744205193125,0.06630155,104.03,104.0,0.06801796]
[1744205193927,9.68480155,104.03,104.0,0.06801796]
[1744205194231,9.68480155,104.03,104.0,9.68811796]
[1744205194421,0.06630155,104.03,104.0,0.06801796]
[1744205194617,9.6197,104.02,104.0,0.06801796]
[1744205195024,0.06630155,104.03,104.0,0.06801796]
[1744205195728,9.6192,104.02,104.0,0.06801796]
[1744205195930,0.06630155,104.03,104.0,0.06801796]
[1744205197130,9.68480155,104.03,104.0,9.68841796]
[1744205197331,0.06630155,104.03,104.0,0.06801796]
[1744205197732,0.06630155,104.03,104.01,9.6196]
[1744205197929,36.00916137,104.03,104.0,0.06801796]
[1744205198130,9.1822,104.02,103.98,0.55652457]
[1744205198331,9.6218,103.99,103.98,0.55652457]
[1744205199032,9.6228,103.98,103.97,0.56033823]
[1744205199334,36.00409306,104.0,103.97,0.56033823]
[1744205199534,45.62549306,104.0,103.97,0.56033823]
[1744205199835,36.00409306,104.0,103.97,0.56033823]
[1744205200335,9.6228,103.98,103.97,0.56033823]
[1744205201328,9.6242,103.97,103.95,0.53317362]
[1744205201532,35.94285982,104.0,103.95,10.15827362]
[1744205201834,0.06946663,103.97,103.95,10.15827362]
[1744205202438,9.69326663,103.97,103.95,0.53317362]
[1744205203136,0.06946663,103.97,103.95,10.15867362]
[1744205203436,0.06946663,103.97,103.95,0.53317362]
[1744205203630,9.69336663,103.97,103.95,0.53317362]
[1744205204539,0.06946663,103.97,103.95,10.15867362]
[1744205206344,0.06946663,103.97,103.95,0.53317362]
[1744205206345,9.6246,103.96,103.95,0.53317362]
[1744205206642,0.06946663,103.97,103.95,0.53317362]
[1744205206845,9.69356663,103.97,103.95,0.53317362]
[1744205207442,0.06946663,103.97,103.95,0.53317362]
[1744205207747,0.06946663,103.97,103.95,10.15867362]
[1744205208245,9.69356663,103.97,103.95,10.15867362]
[1744205208445,0.06946663,103.97,103.95,0.53317362]
[1744205208834,9.69356663,103.97,103.95,0.53317362]
[1744205209035,9.69356663,103.97,103.95,10.15837362]
[1744205209944,9.69356663,103.97,103.95,0.53317362]
[1744205210545,9.69356663,103.97,103.95,10.15857362]
[1744205210748,9.69356663,103.97,103.95,0.53317362]
[1744205212238,9.6246,103.96,103.95,0.53317362]
[1744205213252,32.13450856,103.96,103.95,0.53317362]
[1744205213443,22.50990856,103.96,103.93,0.45716601]
[1744205213647,27.11820856,103.96,103.93,0.45716601]
[1744205214152,0.06946663,103.97,103.93,0.45716601]
[1744205214654,9.6265,103.94,103.93,0.45716601]
[1744205215855,32.12990856,103.94,103.9,0.48199832]
[1744205216054,22.50990856,103.92,103.9,0.48199832]
[1744205216354,9.6292,103.91,103.9,0.48199832]
[1744205218150,56.23877486,103.92,103.9,0.48199832]
[1744205218345,9.69877486,103.92,103.9,0.48199832]
[1744205218540,0.06997486,103.92,103.9,0.48199832]
[1744205219045,9.6292,103.91,103.9,0.48199832]
[1744205219546,9.69877486,103.92,103.9,0.48199832]
[1744205219847,0.06997486,103.92,103.9,0.48199832]
[1744205220155,9.6292,103.91,103.9,0.48199832]
[1744205220352,0.06997486,103.92,103.9,0.48199832]
[1744205220853,445.57882975,103.98,103.9,47.02199832]
[1744205221154,82.57882975,103.98,103.9,56.41139832]
[1744205221354,9.6264,103.95,103.9,56.41139832]
[1744205221556,46.54,103.98,103.9,92.45022807]
[1744205222155,0.07040734,103.95,103.93,9.69777613]
[1744205222658,0.07040734,103.95,103.94,9.6265]
[1744205223455,0.07040734,103.95,103.93,9.69797613]
[1744205223955,0.07040734,103.95,103.94,9.6265]
[1744205225058,13.805,104.03,103.94,45.65882975]
[1744205225263,82.47882975,104.06,103.96,36.03882975]
[1744205225449,9.6189,104.03,103.99,9.6211]
[1744205225759,9.2613,104.07,104.0,82.47882975]
[1744205225945,9.6157,104.06,104.01,9.3616]
[1744205226144,0.06435217,104.05,104.02,0.06778773]
[1744205226655,0.06435217,104.05,104.03,9.6177]
[1744205227047,0.06435217,104.05,104.02,0.06778773]
[1744205227248,0.06435217,104.05,104.04,9.6172]
[1744205227649,49.59321633,104.09,104.05,9.6158]
[1744205228046,39.98031633,104.09,104.03,46.44]
[1744205228254,39.98031633,104.09,104.04,98.03882975]
[1744205228558,39.98031633,104.09,104.04,62.0]
[1744205228760,0.06752205,104.08,104.05,0.06153833]
[1744205228962,39.98031633,104.09,104.06,82.47882975]
[1744205229157,106.6141769,104.1,104.07,4.5841]
[1744205229861,9.6085,104.14,104.07,4.5841]
[1744205230066,51.1918,104.16,104.07,4.5841]
[1744205230363,0.06494983,104.12,104.09,0.07371783]
[1744205230565,0.06494983,104.12,104.09,46.49371783]
[1744205230764,0.06494983,104.12,104.09,46.42]
[1744205230967,0.06494983,104.12,104.09,46.49269995]
[1744205231363,9.67564983,104.12,104.09,46.49269995]
[1744205231565,0.06494983,104.12,104.09,46.49269995]
[1744205232162,36.03882975,104.11,104.03,46.42]
[1744205232362,36.03882975,104.09,104.03,46.42]
[1744205233263,0.0642162,104.07,104.05,0.07306129]
[1744205233562,36.10304595,104.07,104.05,0.07306129]
[1744205234153,9.6161,104.06,104.05,0.07306129]
[1744205234861,36.10304595,104.07,104.0,46.4]
[1744205235059,36.03882975,104.07,104.0,46.4]
[1744205235658,36.03882975,104.09,104.0,46.4]
[1744205235866,9.6147,104.07,104.0,46.4]
[1744205236163,0.06933038,104.06,104.03,0.06133621]
[1744205236463,0.06933038,104.06,104.04,9.6168]
[1744205236765,0.06933038,104.06,104.03,46.46133621]
[1744205236962,0.06933038,104.06,104.04,9.6164]
[1744205237164,0.06933038,104.06,104.03,46.46133621]
[1744205237664,0.06933038,104.06,104.04,9.6163]
[1744205238368,0.06933038,104.06,104.05,9.6163]
[1744205238665,0.06933038,104.06,104.03,46.46133621]
[1744205241672,0.06933038,104.06,104.04,9.6168]
[1744205244372,0.06933038,104.06,104.05,9.6163]
[1744205245171,23.8232,104.11,104.03,144.50016596]
[1744205245374,23.8232,104.11,104.03,144.43882975]
[1744205245572,9.6117,104.1,104.03,144.43882975]
[1744205246273,0.06655434,104.08,104.05,0.06993742]
[1744205246474,0.06655434,104.08,104.06,46.4]
[1744205246775,0.06655434,104.08,104.07,9.6144]
[1744205249166,10.28588,104.12,104.09,9.6117]
[1744205249562,10.28588,104.12,104.09,46.38]
[1744205249972,10.28588,104.12,104.06,46.38]
[1744205250169,10.28588,104.12,104.08,9.67653208]
[1744205250170,9.6112,104.11,104.08,9.67653208]
[1744205250367,0.06787926,104.1,104.08,9.67653208]
[1744205251477,9.67977926,104.1,104.08,0.06333208]
[1744205252178,0.06787926,104.1,104.08,0.06333208]
[1744205252473,0.06787926,104.1,104.08,9.67653208]
[1744205253579,0.06787926,104.1,104.08,0.06333208]
[1744205253881,9.6138,104.08,104.06,46.38]
[1744205254377,45.37352975,104.09,104.03,46.28]
[1744205254773,45.37352975,104.09,104.04,9.6166]
[1744205254976,9.6148,104.07,104.04,9.6166]
[1744205255177,9.6836338,104.07,104.05,0.07267982]
[1744205255682,0.0688338,104.07,104.05,9.68887982]
[1744205255877,0.0688338,104.07,104.05,0.07267982]
[1744205256067,0.0688338,104.07,104.06,9.6154]
[1744205259684,0.0688338,104.07,104.05,0.07267982]
[1744205260682,0.0688338,104.07,104.06,46.28]
[1744205260890,0.0688338,104.07,104.06,55.8954]
[1744205261692,0.0688338,104.07,104.06,46.28]
[1744205262389,0.0688338,104.07,104.06,55.8954]
[1744205263695,0.0688338,104.07,104.06,9.6154]
[1744205264991,0.0688338,104.07,104.05,9.68867982]
[1744205265196,0.0688338,104.07,104.05,0.07267982]
[1744205266001,9.6154,104.06,104.05,0.07267982]
[1744205266390,9.5540338,104.07,104.05,0.07267982]
[1744205267001,19.1691338,104.07,104.05,0.07267982]
[1744205267192,9.5540338,104.07,104.05,0.07267982]
[1744205267394,19.1691338,104.07,104.05,0.07267982]
[1744205267799,0.0688338,104.07,104.05,0.07267982]
[1744205268387,0.0688338,104.07,104.06,9.6154]
[1744205268794,0.0688338,104.07,104.06,46.28]
[1744205268991,9.6832338,104.07,104.05,0.07267982]
[1744205269703,0.0688338,104.07,104.05,0.07267982]
[1744205270301,0.0688338,104.07,104.05,9.68817982]
[1744205270597,0.0688338,104.07,104.05,0.07267982]
[1744205270792,65.4909,104.17,104.06,46.28]
[1744205270992,9.1981,104.13,104.06,46.28]
[1744205271395,55.4781,104.13,104.06,46.28]
[1744205271801,9.6121,104.1,104.07,9.6137]
[1744205272005,9.6121,104.1,104.08,0.07207283]
[1744205272801,9.68279975,104.11,104.08,0.07207283]
[1744205273102,0.07159975,104.11,104.08,0.07207283]
[1744205273902,9.6126,104.09,104.08,0.07207283]
[1744205274205,0.07159975,104.11,104.08,0.07207283]
[1744205274591,9.68279975,104.11,104.08,0.07207283]
[1744205274806,9.68279975,104.11,104.08,9.68517283]
[1744205275403,9.68279975,104.11,104.09,9.6122]
[1744205275604,9.68279975,104.11,104.08,0.07207283]
[1744205276406,0.07159975,104.11,104.08,0.07207283]
[1744205277197,9.6126,104.09,104.08,0.07207283]
[1744205277707,9.6121,104.1,104.08,0.07207283]
[1744205278008,0.07159975,104.11,104.08,0.07207283]